[Event "*** SCC Grand Prix: Titled Tuesday Blitz"]
[Site "Chess.com"]
[Date "2020.06.02"]
[Round "5"]
[White "LuckSlayeer"]
[Black "ZverevLev"]
[Result "1-0"]
[WhiteElo "2459"]
[BlackElo "2230"]
[TimeControl "180+1"]
[EndTime "10:59:37 PDT"]
[Termination "LuckSlayeer won by resignation"]

1. Nf3 {[%clk 0:03:00.9]} 1... d5 {[%clk 0:02:58]} 2. g3 {[%clk 0:02:58.8]} 2...
c6 {[%clk 0:02:56.3]} 3. Bg2 {[%clk 0:02:58.7]} 3... Nf6 {[%clk 0:02:54.3]} 4.
O-O {[%clk 0:02:58.5]} 4... Bf5 {[%clk 0:02:52]} 5. d3 {[%clk 0:02:58.2]} 5...
h6 {[%clk 0:02:46.3]} 6. Nbd2 {[%clk 0:02:58.3]} 6... e6 {[%clk 0:02:45]} 7. Qe1
{[%clk 0:02:57.2]} 7... Bh7 {[%clk 0:02:43.2]} 8. e4 {[%clk 0:02:57.8]} 8... Be7
{[%clk 0:02:41.6]} 9. b3 {[%clk 0:02:57.3]} 9... O-O {[%clk 0:02:39.2]} 10. Bb2
{[%clk 0:02:57.8]} 10... Nbd7 {[%clk 0:02:38.4]} 11. a3 {[%clk 0:02:49.6]} 11...
Qc7 {[%clk 0:02:24.2]} 12. Qe2 {[%clk 0:02:46]} 12... dxe4 {[%clk 0:01:57.1]}
13. dxe4 {[%clk 0:02:44.7]} 13... e5 {[%clk 0:01:55.5]} 14. Nc4 {[%clk
0:02:22.1]} 14... Bxe4 {[%clk 0:01:49.3]} 15. Nfxe5 {[%clk 0:02:04.4]} 15...
Bxg2 {[%clk 0:01:46.7]} 16. Kxg2 {[%clk 0:02:05]} 16... Nxe5 {[%clk 0:01:43.6]}
17. Bxe5 {[%clk 0:02:01]} 17... Qd7 {[%clk 0:01:41.4]} 18. Rad1 {[%clk
0:01:52.8]} 18... Qe6 {[%clk 0:01:38.9]} 19. Rfe1 {[%clk 0:01:44.4]} 19... Nd5
{[%clk 0:01:32.3]} 20. Qf3 {[%clk 0:01:22]} 20... Qg6 {[%clk 0:01:29.8]} 21. Re2
{[%clk 0:01:11.4]} 21... Rad8 {[%clk 0:01:25.5]} 22. Bb2 {[%clk 0:01:07]} 22...
Bf6 {[%clk 0:01:00.7]} 23. Red2 {[%clk 0:00:52.6]} 23... Bxb2 {[%clk 0:00:58.7]}
24. Nxb2 {[%clk 0:00:53.5]} 24... Rfe8 {[%clk 0:00:53.6]} 25. c4 {[%clk
0:00:48.9]} 25... Ne3+ {[%clk 0:00:32.8]} 26. fxe3 {[%clk 0:00:47.4]} 26...
Rxd2+ {[%clk 0:00:33.7]} 27. Rxd2 {[%clk 0:00:48.3]} 27... Qe6 {[%clk
0:00:32.4]} 28. Rd3 {[%clk 0:00:44.9]} 28... Qe5 {[%clk 0:00:31]} 29. Nd1 {[%clk
0:00:37.4]} 29... Qa1 {[%clk 0:00:28.7]} 30. a4 {[%clk 0:00:36.6]} 30... Qa2+
{[%clk 0:00:21.2]} 31. Qf2 {[%clk 0:00:33.1]} 31... Qb1 {[%clk 0:00:20.2]} 32.
Qd2 {[%clk 0:00:32.4]} 32... Kh7 {[%clk 0:00:17.8]} 33. Rc3 {[%clk 0:00:19]}
33... Qe4+ {[%clk 0:00:16.5]} 34. Kg1 {[%clk 0:00:19.5]} 34... Qe7 {[%clk
0:00:15.9]} 35. Qd3+ {[%clk 0:00:19.4]} 35... g6 {[%clk 0:00:14.9]} 36. Nf2
{[%clk 0:00:19.5]} 36... Rd8 {[%clk 0:00:14.1]} 37. Qe2 {[%clk 0:00:19.6]} 37...
Qb4 {[%clk 0:00:13.6]} 38. Rd3 {[%clk 0:00:19.9]} 38... Re8 {[%clk 0:00:13.9]}
39. Qf3 {[%clk 0:00:20.1]} 39... Kg7 {[%clk 0:00:11.7]} 40. Kg2 {[%clk
0:00:19.3]} 40... Qe7 {[%clk 0:00:09.7]} 41. Qf4 {[%clk 0:00:19.3]} 41... Qb4
{[%clk 0:00:08.8]} 42. Qd4+ {[%clk 0:00:19.3]} 42... Kg8 {[%clk 0:00:07.9]} 43.
Qc3 {[%clk 0:00:19.7]} 43... Qe7 {[%clk 0:00:05.9]} 44. c5 {[%clk 0:00:18.1]}
44... Rf8 {[%clk 0:00:05.4]} 45. Qd4 {[%clk 0:00:17.6]} 45... Qe6 {[%clk
0:00:05.1]} 46. Qe4 {[%clk 0:00:13]} 46... Qf6 {[%clk 0:00:04.7]} 47. Qd4 {[%clk
0:00:11.6]} 47... Qe6 {[%clk 0:00:04]} 48. Qd6 {[%clk 0:00:10.4]} 48... Qf5
{[%clk 0:00:03.6]} 49. e4 {[%clk 0:00:10.3]} 49... Qg5 {[%clk 0:00:03.4]} 50.
Nh3 {[%clk 0:00:07.4]} 50... Qg4 {[%clk 0:00:03]} 51. Nf4 {[%clk 0:00:06.8]}
51... g5 {[%clk 0:00:02.5]} 52. h3 {[%clk 0:00:03.4]} 52... Qc8 {[%clk 0:00:03]}
53. Nh5 {[%clk 0:00:03.4]} 53... Kh8 {[%clk 0:00:02.1]} 54. Qf6+ {[%clk
0:00:02.6]} 1-0

[Event "*** SCC Grand Prix: Titled Tuesday Blitz"]
[Site "Chess.com"]
[Date "2020.06.02"]
[Round "5"]
[White "TheNextLevelFan"]
[Black "Stewie_89"]
[Result "1/2-1/2"]
[WhiteElo "2451"]
[BlackElo "2624"]
[TimeControl "180+1"]
[EndTime "10:59:38 PDT"]
[Termination "Game drawn - insufficient material"]

1. d4 {[%clk 0:03:00.9]} 1... d5 {[%clk 0:02:59.5]} 2. c4 {[%clk 0:03:00.7]}
2... dxc4 {[%clk 0:02:59.3]} 3. e4 {[%clk 0:02:59.4]} 3... e5 {[%clk 0:02:58.7]}
4. d5 {[%clk 0:02:58.5]} 4... Nf6 {[%clk 0:02:55.6]} 5. Nc3 {[%clk 0:02:57.5]}
5... b5 {[%clk 0:02:51.9]} 6. Bg5 {[%clk 0:02:51.3]} 6... Bb4 {[%clk 0:02:42.8]}
7. a4 {[%clk 0:02:44.3]} 7... c6 {[%clk 0:02:30.9]} 8. dxc6 {[%clk 0:02:31.7]}
8... Qxd1+ {[%clk 0:01:52.3]} 9. Rxd1 {[%clk 0:02:32.6]} 9... Nxc6 {[%clk
0:01:52.2]} 10. axb5 {[%clk 0:02:30.3]} 10... Nd4 {[%clk 0:01:52]} 11. Bxf6
{[%clk 0:02:26]} 11... gxf6 {[%clk 0:01:50.9]} 12. Bxc4 {[%clk 0:02:26.5]} 12...
Bd7 {[%clk 0:01:46.8]} 13. Ne2 {[%clk 0:02:16.2]} 13... Rc8 {[%clk 0:01:35.7]}
14. Bd3 {[%clk 0:02:07.3]} 14... Nxb5 {[%clk 0:01:03.1]} 15. Rc1 {[%clk
0:01:12.1]} 15... Ke7 {[%clk 0:00:44.6]} 16. O-O {[%clk 0:01:11.5]} 16... Nxc3
{[%clk 0:00:44.1]} 17. Nxc3 {[%clk 0:01:11.5]} 17... Bxc3 {[%clk 0:00:44.3]} 18.
bxc3 {[%clk 0:01:02.9]} 18... a5 {[%clk 0:00:42]} 19. f4 {[%clk 0:00:53.4]}
19... a4 {[%clk 0:00:33.5]} 20. Bb1 {[%clk 0:00:51.8]} 20... Rc5 {[%clk
0:00:30.7]} 21. Ba2 {[%clk 0:00:45.6]} 21... Be6 {[%clk 0:00:28.2]} 22. Bxe6
{[%clk 0:00:43.7]} 22... fxe6 {[%clk 0:00:26.3]} 23. Ra1 {[%clk 0:00:37.4]}
23... Ra8 {[%clk 0:00:19.3]} 24. Ra3 {[%clk 0:00:27.5]} 24... exf4 {[%clk
0:00:19.1]} 25. Rxf4 {[%clk 0:00:27]} 25... Rc4 {[%clk 0:00:19.4]} 26. Rh4
{[%clk 0:00:26.7]} 26... Rb8 {[%clk 0:00:17.3]} 27. Rxh7+ {[%clk 0:00:26.4]}
27... Kd6 {[%clk 0:00:17.4]} 28. Ra7 {[%clk 0:00:27]} 28... Rb1+ {[%clk
0:00:16.9]} 29. Kf2 {[%clk 0:00:27.2]} 29... Rxe4 {[%clk 0:00:16.4]} 30. R7xa4
{[%clk 0:00:26.1]} 30... Rb2+ {[%clk 0:00:16.6]} 31. Kf3 {[%clk 0:00:26.2]}
31... Ree2 {[%clk 0:00:16.7]} 32. Ra6+ {[%clk 0:00:23.2]} 32... Ke7 {[%clk
0:00:16.6]} 33. Ra7+ {[%clk 0:00:22.9]} 33... Kf8 {[%clk 0:00:16.7]} 34. R3a6
{[%clk 0:00:21.2]} 34... Rf2+ {[%clk 0:00:16.5]} 35. Ke4 {[%clk 0:00:18.4]}
35... Rxg2 {[%clk 0:00:16.7]} 36. Rxe6 {[%clk 0:00:17]} 36... Rbe2+ {[%clk
0:00:15.6]} 37. Kd5 {[%clk 0:00:16.8]} 37... Rxe6 {[%clk 0:00:14.3]} 38. Kxe6
{[%clk 0:00:17.1]} 38... Rxh2 {[%clk 0:00:14.8]} 39. Kxf6 {[%clk 0:00:16.4]}
39... Rf2+ {[%clk 0:00:15.4]} 40. Ke6 {[%clk 0:00:16.6]} 40... Rc2 {[%clk
0:00:14]} 41. Rc7 {[%clk 0:00:16.2]} 41... Re2+ {[%clk 0:00:13.3]} 42. Kd6
{[%clk 0:00:16.5]} 42... Ke8 {[%clk 0:00:13.7]} 43. Rc8+ {[%clk 0:00:16.4]}
43... Kf7 {[%clk 0:00:14]} 44. c4 {[%clk 0:00:16.9]} 44... Rd2+ {[%clk
0:00:14.2]} 45. Kc6 {[%clk 0:00:16.1]} 45... Ke7 {[%clk 0:00:15.1]} 46. c5
{[%clk 0:00:15.4]} 46... Rc2 {[%clk 0:00:13.7]} 47. Kb7 {[%clk 0:00:12]} 47...
Kd7 {[%clk 0:00:13.1]} 48. c6+ {[%clk 0:00:12.3]} 48... Ke7 {[%clk 0:00:13.6]}
49. Kc7 {[%clk 0:00:12.2]} 49... Rc3 {[%clk 0:00:11.9]} 50. Ra8 {[%clk
0:00:11.6]} 50... Rc1 {[%clk 0:00:12.1]} 51. Ra4 {[%clk 0:00:11.2]} 51... Rc2
{[%clk 0:00:12.2]} 52. Re4+ {[%clk 0:00:10.9]} 52... Kf7 {[%clk 0:00:12.4]} 53.
Kd6 {[%clk 0:00:09]} 53... Rd2+ {[%clk 0:00:12.5]} 54. Kc5 {[%clk 0:00:05.3]}
54... Rc2+ {[%clk 0:00:12.6]} 55. Kb6 {[%clk 0:00:04.6]} 55... Rb2+ {[%clk
0:00:12.4]} 56. Kc7 {[%clk 0:00:05]} 56... Rc2 {[%clk 0:00:12.8]} 57. Re5 {[%clk
0:00:03.6]} 57... Kf6 {[%clk 0:00:12.2]} 58. Rb5 {[%clk 0:00:03.8]} 58... Ke6
{[%clk 0:00:11.9]} 59. Kb7 {[%clk 0:00:02.5]} 59... Kd6 {[%clk 0:00:12]} 60. Rb6
{[%clk 0:00:02.8]} 60... Rc5 {[%clk 0:00:10.3]} 61. c7+ {[%clk 0:00:03.1]} 61...
Kd7 {[%clk 0:00:10.4]} 62. c8=Q+ {[%clk 0:00:02.8]} 62... Rxc8 {[%clk
0:00:10.6]} 63. Rd6+ {[%clk 0:00:03.3]} 63... Kxd6 {[%clk 0:00:10.9]} 64. Kxc8
{[%clk 0:00:04.2]} 1/2-1/2

[Event "*** SCC Grand Prix: Titled Tuesday Blitz"]
[Site "Chess.com"]
[Date "2020.06.02"]
[Round "5"]
[White "kuba2006"]
[Black "MatyChess1"]
[Result "1/2-1/2"]
[WhiteElo "2417"]
[BlackElo "2574"]
[TimeControl "180+1"]
[EndTime "10:59:41 PDT"]
[Termination "Game drawn by repetition"]

1. e4 {[%clk 0:03:00.9]} 1... c5 {[%clk 0:02:54.2]} 2. Nf3 {[%clk 0:03:00.4]}
2... Nc6 {[%clk 0:02:53.2]} 3. d4 {[%clk 0:03:00.5]} 3... cxd4 {[%clk
0:02:54.1]} 4. Nxd4 {[%clk 0:03:01.1]} 4... g6 {[%clk 0:02:54.8]} 5. Nc3 {[%clk
0:03:00.9]} 5... Bg7 {[%clk 0:02:54.6]} 6. Be3 {[%clk 0:03:01.3]} 6... Nf6
{[%clk 0:02:54.9]} 7. Nxc6 {[%clk 0:03:01.5]} 7... bxc6 {[%clk 0:02:54.4]} 8. e5
{[%clk 0:03:01.7]} 8... Nd5 {[%clk 0:02:55]} 9. Nxd5 {[%clk 0:03:01.4]} 9...
cxd5 {[%clk 0:02:55.9]} 10. Qxd5 {[%clk 0:03:01.5]} 10... Rb8 {[%clk 0:02:56.4]}
11. O-O-O {[%clk 0:03:01.5]} 11... Qc7 {[%clk 0:02:48.1]} 12. f4 {[%clk
0:02:56]} 12... O-O {[%clk 0:02:46.9]} 13. Qc5 {[%clk 0:02:42.8]} 13... Qb7
{[%clk 0:02:35.9]} 14. b3 {[%clk 0:02:40.6]} 14... d6 {[%clk 0:02:35]} 15. Qxa7
{[%clk 0:01:52.9]} 15... Qb4 {[%clk 0:02:20.4]} 16. a3 {[%clk 0:01:42.1]} 16...
Qc3 {[%clk 0:01:44.9]} 17. Bd4 {[%clk 0:01:35.8]} 17... Qc6 {[%clk 0:01:42.9]}
18. Qxb8 {[%clk 0:01:02.5]} 18... Bf5 {[%clk 0:01:40]} 19. Qxf8+ {[%clk
0:01:02]} 19... Kxf8 {[%clk 0:01:40.9]} 20. Bd3 {[%clk 0:00:48]} 20... dxe5
{[%clk 0:01:18.7]} 21. fxe5 {[%clk 0:00:34.1]} 21... Be6 {[%clk 0:01:17.1]} 22.
Kb1 {[%clk 0:00:27.9]} 22... Qxg2 {[%clk 0:01:16.1]} 23. Bb2 {[%clk 0:00:21.2]}
23... h5 {[%clk 0:01:12]} 24. Rhf1 {[%clk 0:00:18.9]} 24... Kg8 {[%clk
0:01:10.7]} 25. h4 {[%clk 0:00:15.7]} 25... Qg3 {[%clk 0:01:10.3]} 26. a4 {[%clk
0:00:15.5]} 26... Bxe5 {[%clk 0:01:03]} 27. Bxe5 {[%clk 0:00:10.3]} 27... Qxe5
{[%clk 0:01:03.9]} 28. Rde1 {[%clk 0:00:10.4]} 28... Qc3 {[%clk 0:00:33.1]} 29.
Rd1 {[%clk 0:00:03.1]} 29... Kg7 {[%clk 0:00:30.5]} 30. Be4 {[%clk 0:00:01.9]}
30... Bxb3 {[%clk 0:00:26.1]} 31. cxb3 {[%clk 0:00:01.9]} 31... Qxb3+ {[%clk
0:00:27]} 32. Kc1 {[%clk 0:00:01.9]} 32... Qe3+ {[%clk 0:00:27.3]} 33. Kc2
{[%clk 0:00:02]} 33... Qxe4+ {[%clk 0:00:27.6]} 34. Kb3 {[%clk 0:00:02.2]} 34...
Qe6+ {[%clk 0:00:17.1]} 35. Kb4 {[%clk 0:00:01.8]} 35... Qb6+ {[%clk 0:00:17.1]}
36. Ka3 {[%clk 0:00:02.2]} 36... Qc5+ {[%clk 0:00:15.4]} 37. Kb3 {[%clk
0:00:01.9]} 37... e5 {[%clk 0:00:15.7]} 38. Rc1 {[%clk 0:00:02.2]} 38... Qb6+
{[%clk 0:00:14.7]} 39. Kc4 {[%clk 0:00:02.5]} 39... Qa5 {[%clk 0:00:14.1]} 40.
Kb3 {[%clk 0:00:02.2]} 40... e4 {[%clk 0:00:14.6]} 41. Rce1 {[%clk 0:00:02.4]}
41... Qd5+ {[%clk 0:00:14]} 42. Kb4 {[%clk 0:00:02.3]} 42... Qd4+ {[%clk
0:00:14.5]} 43. Kb5 {[%clk 0:00:02.4]} 43... Qd3+ {[%clk 0:00:13.8]} 44. Kb6
{[%clk 0:00:02.6]} 44... f5 {[%clk 0:00:14]} 45. a5 {[%clk 0:00:02.6]} 45... f4
{[%clk 0:00:13]} 46. a6 {[%clk 0:00:02.9]} 46... Qd4+ {[%clk 0:00:12.6]} 47. Kb7
{[%clk 0:00:03]} 47... Qd5+ {[%clk 0:00:13]} 48. Kb8 {[%clk 0:00:03.2]} 48...
Qd6+ {[%clk 0:00:13.2]} 49. Kb7 {[%clk 0:00:03.4]} 49... Qb4+ {[%clk 0:00:12.7]}
50. Ka7 {[%clk 0:00:03.4]} 50... e3 {[%clk 0:00:12.6]} 51. Rb1 {[%clk
0:00:03.2]} 51... Qd4+ {[%clk 0:00:12.8]} 52. Kb8 {[%clk 0:00:03]} 52... e2
{[%clk 0:00:13.7]} 53. Rfe1 {[%clk 0:00:02.9]} 53... Qe5+ {[%clk 0:00:13.1]} 54.
Kb7 {[%clk 0:00:02.9]} 54... Qd5+ {[%clk 0:00:13.5]} 55. Kb8 {[%clk 0:00:03.1]}
55... Qd6+ {[%clk 0:00:13.8]} 56. Kb7 {[%clk 0:00:03.4]} 56... Qd5+ {[%clk
0:00:14.1]} 57. Kb8 {[%clk 0:00:03.7]} 57... f3 {[%clk 0:00:14.7]} 58. a7 {[%clk
0:00:03.8]} 58... Qd6+ {[%clk 0:00:13.6]} 59. Kb7 {[%clk 0:00:04.2]} 59... Qd5+
{[%clk 0:00:14.2]} 60. Kb8 {[%clk 0:00:04.7]} 60... Qe5+ {[%clk 0:00:13]} 61.
Kb7 {[%clk 0:00:04.8]} 61... Qe4+ {[%clk 0:00:13.5]} 62. Kb8 {[%clk 0:00:05]}
62... Qe8+ {[%clk 0:00:12]} 63. Kb7 {[%clk 0:00:04.8]} 63... Qe4+ {[%clk
0:00:12.9]} 64. Kb8 {[%clk 0:00:05]} 64... Qe5+ {[%clk 0:00:13.2]} 65. Kb7
{[%clk 0:00:05.1]} 65... Qd5+ {[%clk 0:00:13.6]} 66. Kb8 {[%clk 0:00:05.4]}
1/2-1/2

[Event "*** SCC Grand Prix: Titled Tuesday Blitz"]
[Site "Chess.com"]
[Date "2020.06.02"]
[Round "5"]
[White "hanzo_hasashi1"]
[Black "Chopper1905"]
[Result "1-0"]
[WhiteElo "2792"]
[BlackElo "2927"]
[TimeControl "180+1"]
[EndTime "10:59:42 PDT"]
[Termination "hanzo_hasashi1 won by checkmate"]

1. c4 {[%clk 0:02:59.9]} 1... Nf6 {[%clk 0:02:59.8]} 2. Nc3 {[%clk 0:02:56.7]}
2... e5 {[%clk 0:02:59.7]} 3. Nf3 {[%clk 0:02:54.7]} 3... Nc6 {[%clk 0:02:59.7]}
4. g3 {[%clk 0:02:50.9]} 4... d5 {[%clk 0:02:58.2]} 5. cxd5 {[%clk 0:02:49.9]}
5... Nxd5 {[%clk 0:02:59.1]} 6. Bg2 {[%clk 0:02:49.4]} 6... Nb6 {[%clk
0:02:59.6]} 7. O-O {[%clk 0:02:45.2]} 7... Be7 {[%clk 0:03:00]} 8. d3 {[%clk
0:02:40.2]} 8... O-O {[%clk 0:03:00.2]} 9. a3 {[%clk 0:02:35]} 9... Re8 {[%clk
0:02:54.3]} 10. b4 {[%clk 0:02:24.8]} 10... Bf8 {[%clk 0:02:54.8]} 11. Bb2
{[%clk 0:02:20.1]} 11... a5 {[%clk 0:02:50.1]} 12. b5 {[%clk 0:02:16.8]} 12...
Nd4 {[%clk 0:02:50]} 13. e3 {[%clk 0:02:06.7]} 13... Nxf3+ {[%clk 0:02:41.6]}
14. Bxf3 {[%clk 0:02:05.1]} 14... a4 {[%clk 0:02:40.9]} 15. Rc1 {[%clk
0:02:01.1]} 15... Ra7 {[%clk 0:02:11.2]} 16. Qe2 {[%clk 0:01:52.7]} 16... Be6
{[%clk 0:02:09.7]} 17. Ne4 {[%clk 0:01:43.6]} 17... Bd5 {[%clk 0:02:03.8]} 18.
Nc3 {[%clk 0:01:30.6]} 18... Bb3 {[%clk 0:02:00.1]} 19. Ne4 {[%clk 0:01:22]}
19... Ra5 {[%clk 0:01:46.2]} 20. Nc3 {[%clk 0:01:15.2]} 20... Nd5 {[%clk
0:01:22.2]} 21. Nxd5 {[%clk 0:01:11]} 21... Bxd5 {[%clk 0:01:23.1]} 22. Bxd5
{[%clk 0:01:08.8]} 22... Qxd5 {[%clk 0:01:24]} 23. Rxc7 {[%clk 0:01:06.9]} 23...
Rxb5 {[%clk 0:01:24.4]} 24. d4 {[%clk 0:01:03.5]} 24... exd4 {[%clk 0:01:12.5]}
25. Bxd4 {[%clk 0:01:02.1]} 25... Rb3 {[%clk 0:01:12.4]} 26. Rd1 {[%clk
0:00:58]} 26... Rd8 {[%clk 0:00:46.2]} 27. Rcc1 {[%clk 0:00:49.3]} 27... Qb5
{[%clk 0:00:41.5]} 28. Qxb5 {[%clk 0:00:45.2]} 28... Rxb5 {[%clk 0:00:42.4]} 29.
Rd3 {[%clk 0:00:45.4]} 29... Rd7 {[%clk 0:00:24]} 30. Rc8 {[%clk 0:00:42]} 30...
h6 {[%clk 0:00:13.1]} 31. Ra8 {[%clk 0:00:36.3]} 31... Rb3 {[%clk 0:00:11.1]}
32. Rd1 {[%clk 0:00:34.3]} 32... b5 {[%clk 0:00:10.5]} 33. Rc1 {[%clk
0:00:31.7]} 33... f6 {[%clk 0:00:03.2]} 34. Rcc8 {[%clk 0:00:30.5]} 34... Rxa3
{[%clk 0:00:03.6]} 35. Rxf8+ {[%clk 0:00:28.8]} 35... Kh7 {[%clk 0:00:03.5]} 36.
h4 {[%clk 0:00:24.3]} 36... h5 {[%clk 0:00:03.2]} 37. Kg2 {[%clk 0:00:17.5]}
37... Rb3 {[%clk 0:00:03.7]} 38. g4 {[%clk 0:00:17.4]} 38... Kg6 {[%clk
0:00:03.1]} 39. Kg3 {[%clk 0:00:17]} 39... hxg4 {[%clk 0:00:03.3]} 40. Kxg4
{[%clk 0:00:17.1]} 40... Rd5 {[%clk 0:00:04.2]} 41. Rh8 {[%clk 0:00:15.5]} 41...
a3 {[%clk 0:00:03.7]} 42. h5+ {[%clk 0:00:15.3]} 42... Kf7 {[%clk 0:00:04.2]}
43. Ra7+ {[%clk 0:00:14.9]} 43... Ke6 {[%clk 0:00:05.1]} 44. Re8+ {[%clk
0:00:14.7]} 44... Kd6 {[%clk 0:00:05.7]} 45. Rxg7 {[%clk 0:00:13.9]} 45... b4
{[%clk 0:00:04.3]} 46. Ra7 {[%clk 0:00:13.4]} 46... Kc6 {[%clk 0:00:04]} 47. h6
{[%clk 0:00:13.1]} 47... Rg5+ {[%clk 0:00:03]} 48. Kf4 {[%clk 0:00:13.1]} 48...
Rb1 {[%clk 0:00:03.3]} 49. h7 {[%clk 0:00:13]} 49... Rh1 {[%clk 0:00:03.6]} 50.
h8=Q {[%clk 0:00:13.1]} 50... Rxh8 {[%clk 0:00:04.5]} 51. Rxh8 {[%clk
0:00:13.5]} 51... Kb5 {[%clk 0:00:05.1]} 52. Bxf6 {[%clk 0:00:12.8]} 52... Rc5
{[%clk 0:00:05.4]} 53. Rb8+ {[%clk 0:00:12.7]} 53... Kc4 {[%clk 0:00:05.5]} 54.
Rxb4+ {[%clk 0:00:13.1]} 54... Kd3 {[%clk 0:00:04.3]} 55. Rxa3+ {[%clk
0:00:11.8]} 55... Ke2 {[%clk 0:00:04.9]} 56. Rb2+ {[%clk 0:00:11.1]} 56... Kf1
{[%clk 0:00:05.4]} 57. Kg3 {[%clk 0:00:11.2]} 57... Rc1 {[%clk 0:00:04.6]} 58.
f4 {[%clk 0:00:10.7]} 58... Re1 {[%clk 0:00:04.9]} 59. Ra1 {[%clk 0:00:10.4]}
59... Rxa1 {[%clk 0:00:04.6]} 60. Rf2+ {[%clk 0:00:11.3]} 60... Kg1 {[%clk
0:00:05.2]} 61. Bxa1 {[%clk 0:00:11.3]} 61... Kh1 {[%clk 0:00:06.1]} 62. Rf1#
{[%clk 0:00:10.8]} 1-0

[Event "*** SCC Grand Prix: Titled Tuesday Blitz"]
[Site "Chess.com"]
[Date "2020.06.02"]
[Round "5"]
[White "Man-Chuk"]
[Black "Muracle"]
[Result "1/2-1/2"]
[WhiteElo "2766"]
[BlackElo "2600"]
[TimeControl "180+1"]
[EndTime "10:59:53 PDT"]
[Termination "Game drawn by agreement"]

1. d4 {[%clk 0:02:55.9]} 1... Nf6 {[%clk 0:02:57]} 2. c4 {[%clk 0:02:55.1]} 2...
g6 {[%clk 0:02:56.9]} 3. Nc3 {[%clk 0:02:54.3]} 3... d5 {[%clk 0:02:57.1]} 4.
Nf3 {[%clk 0:02:54.3]} 4... Bg7 {[%clk 0:02:56.9]} 5. h4 {[%clk 0:02:52.6]} 5...
c6 {[%clk 0:02:51]} 6. cxd5 {[%clk 0:02:50.4]} 6... cxd5 {[%clk 0:02:50.5]} 7.
Bf4 {[%clk 0:02:24.1]} 7... O-O {[%clk 0:02:48]} 8. e3 {[%clk 0:02:24.2]} 8...
Nc6 {[%clk 0:02:47.3]} 9. Qb3 {[%clk 0:02:23.1]} 9... Na5 {[%clk 0:02:42]} 10.
Qb4 {[%clk 0:02:20.1]} 10... b6 {[%clk 0:02:34.6]} 11. Ne5 {[%clk 0:02:16.6]}
11... Bf5 {[%clk 0:02:21]} 12. Be2 {[%clk 0:02:14.3]} 12... Ne4 {[%clk
0:02:15.9]} 13. Nxe4 {[%clk 0:02:04.8]} 13... dxe4 {[%clk 0:02:08.4]} 14. h5
{[%clk 0:02:00]} 14... Rc8 {[%clk 0:01:59.9]} 15. hxg6 {[%clk 0:01:54.1]} 15...
hxg6 {[%clk 0:02:00]} 16. O-O {[%clk 0:01:17.6]} 16... Rc2 {[%clk 0:01:46]} 17.
Bd1 {[%clk 0:01:17.6]} 17... Rc8 {[%clk 0:01:40.1]} 18. Ba4 {[%clk 0:01:16.5]}
18... f6 {[%clk 0:01:23.9]} 19. Bb3+ {[%clk 0:01:09.4]} 19... Nxb3 {[%clk
0:01:20.6]} 20. Qxb3+ {[%clk 0:01:10.3]} 20... Kh7 {[%clk 0:01:19.8]} 21. Nc4
{[%clk 0:01:05.9]} 21... Be6 {[%clk 0:01:09]} 22. Rfc1 {[%clk 0:01:05.5]} 22...
Qd5 {[%clk 0:01:01.3]} 23. Nd2 {[%clk 0:01:00.4]} 23... Qf5 {[%clk 0:01:01]} 24.
Qa3 {[%clk 0:00:55.8]} 24... Rxc1+ {[%clk 0:00:36.4]} 25. Rxc1 {[%clk
0:00:56.7]} 25... g5 {[%clk 0:00:35.4]} 26. Bg3 {[%clk 0:00:56.3]} 26... Kg6
{[%clk 0:00:28.2]} 27. Qxe7 {[%clk 0:00:55.8]} 27... Bxa2 {[%clk 0:00:26.5]} 28.
Qxe4 {[%clk 0:00:46.5]} 28... Qxe4 {[%clk 0:00:20.6]} 29. Nxe4 {[%clk
0:00:47.4]} 29... f5 {[%clk 0:00:20.6]} 30. Nd2 {[%clk 0:00:39.7]} 30... f4
{[%clk 0:00:20.1]} 31. Bh2 {[%clk 0:00:31.4]} 31... Bd5 {[%clk 0:00:19.4]} 32.
Rc7 {[%clk 0:00:26.8]} 32... Rf7 {[%clk 0:00:18]} 33. Rxf7 {[%clk 0:00:25.8]}
33... Kxf7 {[%clk 0:00:16.2]} 34. Kf1 {[%clk 0:00:17.2]} 34... a5 {[%clk
0:00:16.1]} 35. Nf3 {[%clk 0:00:10.5]} 35... Kg6 {[%clk 0:00:09.2]} 36. Ke2
{[%clk 0:00:09]} 36... a4 {[%clk 0:00:08.7]} 37. exf4 {[%clk 0:00:08.2]} 37...
Bxf3+ {[%clk 0:00:07.1]} 38. Kxf3 {[%clk 0:00:09.1]} 38... Bxd4 {[%clk
0:00:07.7]} 39. Ke4 {[%clk 0:00:04.6]} 39... Bxb2 {[%clk 0:00:07.5]} 40. f5+
{[%clk 0:00:05.3]} 40... Kf7 {[%clk 0:00:07.6]} 41. Kd3 {[%clk 0:00:05.5]} 41...
b5 {[%clk 0:00:07.8]} 42. Kc2 {[%clk 0:00:05.6]} 42... Bd4 {[%clk 0:00:06.8]}
43. Bd6 {[%clk 0:00:04.3]} 43... Bxf2 {[%clk 0:00:06.2]} 44. g4 {[%clk
0:00:04.9]} 44... Bd4 {[%clk 0:00:04.7]} 45. Bb4 {[%clk 0:00:05.2]} 45... Kf6
{[%clk 0:00:04.7]} 46. Kd3 {[%clk 0:00:05.6]} 46... Bb2 {[%clk 0:00:04.1]} 47.
Kc2 {[%clk 0:00:06.1]} 47... Be5 {[%clk 0:00:04.7]} 48. Kd3 {[%clk 0:00:06.2]}
48... Ba1 {[%clk 0:00:04.6]} 49. Kc2 {[%clk 0:00:05.7]} 49... Ke5 {[%clk
0:00:04.7]} 50. Bc3+ {[%clk 0:00:03.7]} 50... Bxc3 {[%clk 0:00:03.9]} 51. Kxc3
{[%clk 0:00:04.6]} 51... a3 {[%clk 0:00:03.7]} 52. Kb3 {[%clk 0:00:05.5]} 52...
b4 {[%clk 0:00:03.8]} 53. Ka2 {[%clk 0:00:06.1]} 53... Kd5 {[%clk 0:00:03.8]}
54. Kb3 {[%clk 0:00:06.1]} 54... Ke5 {[%clk 0:00:04.2]} 55. Ka2 {[%clk
0:00:06.3]} 55... Kf6 {[%clk 0:00:03.9]} 1/2-1/2